bitfinex/quotes_BTCUSD_20241119
["timestamp","ask_amount","ask_price","bid_price","bid_amount"]
[1732046458137,0.002,93124.0,93123.0,0.06443]
[1732046458395,0.01,93129.0,93090.0,0.10906255]
[1732046458396,0.01,93119.0,93090.0,0.10906255]
[1732046458613,0.01,93119.0,93109.0,0.06444]
[1732046458614,0.117389,93119.0,93109.0,0.06444]
[1732046458856,0.002,93117.0,93109.0,0.06444]
[1732046459075,0.002,93117.0,93111.0,0.064438]
[1732046459297,0.002,93117.0,93112.0,0.064438]
[1732046459520,0.002,93117.0,93113.0,0.064437]
[1732046460161,0.002,93116.0,93114.0,0.064436]
[1732046460405,0.01,93107.0,93101.0,0.064446]
[1732046460648,0.01,93107.0,93101.0,0.064445]
[1732046460990,0.01,93107.0,93104.0,0.064443]
[1732046461103,0.012,93107.0,93104.0,0.064443]
[1732046461334,0.01,93115.0,93114.0,0.064437]
[1732046461556,0.60211684,93120.0,93119.0,0.064433]
[1732046461794,0.60211684,93120.0,93119.0,0.064393]
[1732046461795,0.59211684,93120.0,93119.0,0.064393]
[1732046462055,0.59211684,93120.0,93111.0,0.064439]
[1732046462056,0.002,93117.0,93116.0,0.064435]
[1732046462273,0.01,93112.0,93091.0,0.164453]
[1732046462493,0.012,93116.0,93109.0,0.06444]
[1732046462717,0.01,93118.0,93093.0,0.1]
[1732046462718,0.5483,93115.0,93114.0,0.064437]
[1732046463808,0.5583,93115.0,93114.0,0.064437]
[1732046464022,0.5483,93115.0,93114.0,0.064437]
[1732046464493,0.5483,93115.0,93114.0,0.17349955]
[1732046464959,0.0652,93143.0,93142.0,0.053681]
[1732046465174,0.0452,93143.0,93142.0,0.053681]
[1732046465401,0.5483,93145.0,93144.0,0.05368]
[1732046465630,0.01,93155.0,93153.0,0.053675]
[1732046465858,0.01,93155.0,93142.0,0.10906255]
[1732046465859,0.04376348,93160.0,93154.0,0.053674]
[1732046466079,0.0295848,93168.0,93166.0,0.053667]
[1732046466297,0.01004,93167.0,93166.0,0.053667]
[1732046466996,0.01004,93167.0,93151.0,0.053676]
[1732046466997,0.01,93162.0,93145.0,0.053679]
[1732046467228,0.01,93162.0,93161.0,0.05367]
[1732046467925,0.01,93162.0,93136.0,0.1]
[1732046467926,0.01,93162.0,93150.0,0.053676]
[1732046468161,0.01,93152.0,93123.0,0.023]
[1732046468390,0.002,93148.0,93147.0,0.053678]
[1732046468667,0.002,93140.0,93139.0,0.053683]
[1732046468888,0.012,93143.0,93139.0,0.053683]
[1732046469107,0.002,93141.0,93140.0,0.053682]
[1732046469349,0.002,93141.0,93101.0,0.0805]
[1732046469350,0.01,93124.0,93101.0,0.0805]
[1732046469576,0.1,93140.0,93089.0,0.134211]
[1732046469577,0.01,93114.0,93089.0,0.134211]
[1732046469796,0.002,93109.0,93108.0,0.0537]
[1732046470243,0.01,93112.0,93109.0,0.0537]
[1732046470468,0.01,93111.0,93090.0,0.10906255]
[1732046470693,0.002,93105.0,93104.0,0.053703]
[1732046471174,0.48993441,93112.0,93111.0,0.053699]
[1732046472756,0.48993441,93112.0,93109.0,0.0537]
[1732046472757,0.002,93108.0,93104.0,0.0008561]
[1732046472977,0.49993441,93112.0,93104.0,0.0008561]
[1732046472978,0.002,93105.0,93104.0,0.0545591]
[1732046473199,0.48993441,93112.0,93111.0,0.053699]
[1732046474113,0.48993441,93112.0,93106.0,0.053701]
[1732046474114,0.01,93127.0,93126.0,0.05369]
[1732046474335,0.01,93127.0,93104.0,0.0008561]
[1732046474336,0.01,93127.0,93124.0,0.053691]
[1732046474563,0.01,93127.0,93123.0,0.053692]
[1732046474797,0.01,93127.0,93126.0,0.05369]
[1732046475018,0.001,93137.0,93127.0,0.05369]
[1732046475238,0.1,93152.0,93124.0,0.053691]
[1732046475239,0.342989,93206.0,93205.0,3.69488216]
[1732046475458,0.83136903,93206.0,93205.0,0.40655464]
[1732046475673,0.83136903,93206.0,93132.0,0.053687]
[1732046475674,0.107356,93148.0,93137.0,0.053684]
[1732046475888,0.10906255,93147.0,93132.0,0.053686]
[1732046476144,0.107361,93144.0,93133.0,0.053686]
[1732046476409,0.10906255,93143.0,93140.0,0.053682]
[1732046476599,0.10906255,93143.0,93139.0,0.053682]
[1732046476825,0.10906255,93142.0,93129.0,0.002]
[1732046477054,0.107366,93139.0,93133.0,0.053686]
[1732046477287,0.10906255,93138.0,93133.0,0.053686]
[1732046477523,0.10737,93136.0,93121.0,0.01]
[1732046477754,0.21643055,93138.0,93131.0,0.053687]
[1732046477980,0.107373,93133.0,93127.0,0.053689]
[1732046478222,0.29292818,93132.0,93108.0,0.002]
[1732046478443,0.18386563,93113.0,93104.0,0.0545591]
[1732046478694,0.107398,93112.0,93105.0,0.053702]
[1732046478915,0.18386563,93113.0,93104.0,0.0008561]
[1732046479147,0.18386563,93113.0,93083.0,0.02818119]
[1732046479148,0.12875659,93111.0,93083.0,0.02818119]
[1732046479416,0.12875659,93111.0,93092.0,0.053709]
[1732046479417,0.10741,93101.0,93092.0,0.053709]
[1732046479630,0.107412,93099.0,93090.0,0.053711]
[1732046479868,0.10906255,93098.0,93091.0,0.05371]
[1732046480119,0.12875659,93098.0,93089.0,0.053711]
[1732046480391,0.12875659,93098.0,93038.0,0.01]
[1732046480392,0.0467,93094.0,93038.0,0.01]
[1732046480615,0.0467,93094.0,93059.0,0.053729]
[1732046480616,0.18386563,93077.0,93059.0,0.053729]
[1732046480833,0.107441,93074.0,93065.0,0.053725]
[1732046481044,0.05119995,93073.0,93065.0,0.10745]
[1732046481277,0.08052295,93073.0,93052.0,0.053733]
[1732046481497,0.2677045,93073.0,93062.0,0.053727]
[1732046481746,0.2677045,93073.0,93063.0,0.053726]
[1732046481940,0.21443863,93077.0,93036.0,0.01]
[1732046481941,0.18386563,93077.0,93065.0,0.053725]
[1732046482154,0.18386563,93077.0,93042.0,0.053738]
[1732046482155,0.10906255,93076.0,93069.0,0.053723]
[1732046482369,0.10906255,93076.0,93069.0,0.107446]
[1732046482600,0.10906255,93076.0,93069.0,0.053723]
[1732046482847,0.21488,93075.0,93055.0,0.153731]
[1732046483106,0.10906255,93074.0,93065.0,0.053725]
[1732046483352,0.107442,93073.0,93057.0,0.05373]
[1732046483555,0.21650455,93073.0,93064.0,0.053726]
[1732046483793,0.21650455,93073.0,93062.0,0.053727]
[1732046484278,0.21650455,93073.0,93051.0,0.0004]
[1732046484513,0.43146483,93073.0,93053.0,0.064478]
[1732046484743,0.43146483,93073.0,93056.0,0.064477]
[1732046484744,0.40089183,93073.0,93056.0,0.064477]
[1732046484956,0.40089183,93073.0,93057.0,0.064476]
[1732046485218,0.21650455,93073.0,93056.0,0.064476]
[1732046485434,0.21650455,93073.0,93055.0,0.064477]
[1732046485873,0.21650455,93073.0,93060.0,0.064474]
[1732046486311,0.26053135,93073.0,93055.0,0.064477]
[1732046486525,0.26053135,93073.0,93059.0,0.064474]
[1732046486764,0.26053135,93073.0,93058.0,0.064475]
[1732046487204,0.80883135,93073.0,93054.0,0.064478]
[1732046487653,0.80883135,93073.0,93055.0,0.064477]
[1732046487875,0.80883135,93073.0,93052.0,0.064479]
[1732046488108,0.91883135,93073.0,93056.0,0.064477]
[1732046488326,0.91883135,93073.0,93052.0,0.064479]
[1732046488793,0.91883135,93073.0,93057.0,0.064476]
[1732046489007,0.90883135,93073.0,93056.0,0.064477]
[1732046489225,0.93767361,93073.0,93056.0,0.064477]
[1732046489446,0.91883135,93073.0,93056.0,0.064477]
[1732046489674,0.91883135,93073.0,93051.0,0.0004]
[1732046489675,0.80883135,93073.0,93054.0,0.064478]
[1732046489915,0.80883135,93073.0,93060.0,0.064473]
[1732046490153,0.80883135,93073.0,93051.0,0.0004]
[1732046490154,0.0440268,93073.0,93072.0,0.0653213]
[1732046490639,4e-05,93074.0,93073.0,0.064465]
[1732046490816,0.04408638,93074.0,93073.0,0.064465]
[1732046491067,4e-05,93074.0,93073.0,0.064465]
[1732046494261,4e-05,93074.0,93073.0,0.17352755]
[1732046494742,4e-05,93074.0,93073.0,0.40222755]
[1732046495180,4e-05,93074.0,93073.0,0.46814498]
[1732046495449,0.01955951,93117.0,93116.0,0.064435]
[1732046495887,0.03132114,93132.0,93118.0,0.064434]
[1732046496115,0.02128941,93119.0,93118.0,0.064434]
[1732046497021,0.224726,93142.0,93118.0,0.064434]
[1732046497022,0.107374,93132.0,93118.0,0.064434]
[1732046497305,0.21643755,93131.0,93121.0,0.064432]
[1732046497534,0.59174674,93137.0,93117.0,0.18438728]
[1732046497535,0.03132114,93136.0,93117.0,0.18438728]
[1732046497784,0.04344674,93137.0,93136.0,0.064421]
[1732046498271,4e-05,93138.0,93137.0,0.064421]
[1732046498971,4e-05,93138.0,93127.0,0.064427]
[1732046498972,0.107373,93134.0,93121.0,0.064431]
[1732046499193,0.107373,93134.0,93079.0,0.01]
[1732046499194,0.04461082,93138.0,93131.0,0.064425]
[1732046499441,4e-05,93138.0,93131.0,0.064424]
[1732046500132,4e-05,93138.0,93132.0,0.064424]
[1732046500362,0.65736255,93137.0,93114.0,0.064437]
[1732046500588,0.5483,93136.0,93103.0,0.1]
[1732046500814,0.10906255,93135.0,93129.0,0.064426]
[1732046501281,0.10906255,93135.0,93107.0,0.1]
[1732046501502,0.5483,93136.0,93133.0,0.064423]
[1732046501716,4e-05,93138.0,93129.0,0.064426]
[1732046501949,4e-05,93138.0,93127.0,0.064427]
[1732046501950,0.10906255,93137.0,93131.0,0.064425]
[1732046502396,0.10906255,93137.0,93127.0,0.064427]
[1732046502618,0.04466428,93138.0,93137.0,0.064421]
[1732046503083,0.05004,93138.0,93137.0,0.064421]
[1732046506316,0.05004,93138.0,93137.0,0.141421]
[1732046507417,0.051753,93138.0,93137.0,0.141421]
[1732046507854,0.051753,93138.0,93133.0,0.064423]
[1732046508070,0.051753,93138.0,93137.0,0.064421]
[1732046508497,0.051753,93138.0,93125.0,0.1219]
[1732046508711,0.051753,93138.0,93135.0,0.064422]
[1732046509408,0.051753,93138.0,93137.0,0.064421]
[1732046511928,0.00705668,93152.0,93133.0,0.228846]
[1732046512139,0.12697419,93163.0,93133.0,0.1]
[1732046512359,0.10906255,93162.0,93156.0,0.064407]
[1732046512610,0.04408326,93163.0,93162.0,0.064403]
[1732046512828,0.01963519,93176.0,93170.0,0.064397]
[1732046513050,0.04332545,93174.0,93153.0,0.06441]
[1732046513272,0.65736255,93173.0,93142.0,0.0763]
[1732046513491,0.214659,93171.0,93151.0,0.064411]
[1732046513752,0.65736255,93170.0,93137.0,0.0498]
[1732046513944,0.56793519,93169.0,93147.0,0.064414]
[1732046514163,0.75829774,93168.0,93145.0,0.064415]
[1732046514379,0.01963519,93167.0,93151.0,0.064411]
[1732046514590,0.10906255,93166.0,93151.0,0.064411]
[1732046514827,0.12869774,93166.0,93149.0,0.064412]
[1732046515087,0.10906255,93166.0,93153.0,0.06441]
[1732046515302,0.21639755,93166.0,93149.0,0.064412]
[1732046515738,0.10906255,93166.0,93150.0,0.064411]
[1732046515957,0.10906255,93166.0,93137.0,0.0498]
[1732046516202,0.10906255,93166.0,93144.0,0.064416]
[1732046516413,0.107342,93160.0,93143.0,0.064417]
[1732046516626,0.10906255,93166.0,93144.0,0.064416]
[1732046516846,0.10906255,93166.0,93143.0,0.064417]
[1732046516847,0.107339,93163.0,93137.0,0.0498]
[1732046517077,0.10906255,93166.0,93137.0,0.0498]
[1732046517078,0.107351,93152.0,93137.0,0.0498]
[1732046517325,0.107355,93149.0,93137.0,0.0498]
[1732046517568,0.09417122,93191.0,93135.0,0.1]
[1732046517569,0.65736255,93159.0,93135.0,0.064422]
[1732046517805,0.04391776,93160.0,93134.0,0.18438728]
[1732046518041,0.214684,93161.0,93143.0,0.064416]
[1732046518299,0.10906255,93160.0,93134.0,0.18438728]
[1732046518516,0.10906255,93160.0,93131.0,0.0798]
[1732046518517,0.65736255,93160.0,93131.0,0.0798]
[1732046518743,0.21471,93149.0,93131.0,0.144225]
[1732046518991,0.01965153,93157.0,93132.0,0.064424]
[1732046519204,0.107347,93155.0,93132.0,0.064424]
[1732046519429,0.107358,93146.0,93132.0,0.064424]
[1732046519648,0.107357,93147.0,93134.0,0.000856]
[1732046519866,0.01965153,93153.0,93134.0,0.000856]
[1732046520080,0.5483,93164.0,93134.0,0.000856]
[1732046520081,0.01965153,93157.0,93134.0,0.000856]
[1732046520292,0.107347,93156.0,93141.0,0.064418]
[1732046520502,0.107347,93156.0,93134.0,0.000856]
[1732046520503,0.10734,93162.0,93144.0,0.064416]
[1732046520726,0.12699053,93163.0,93156.0,0.18438728]
[1732046520942,0.001712,93166.0,93156.0,0.18438728]
[1732046520943,0.001712,93166.0,93157.0,0.0775]
[1732046521393,0.001712,93166.0,93165.0,0.064401]
[1732046521614,0.001712,93166.0,93165.0,0.24878828]
[1732046522284,0.001712,93166.0,93157.0,0.0775]
[1732046522534,0.001712,93166.0,93162.0,0.064403]
[1732046522762,0.001712,93166.0,93157.0,0.0775]
[1732046522763,0.001712,93166.0,93160.0,0.064404]
[1732046522981,0.001712,93166.0,93161.0,0.064404]
[1732046523211,0.001712,93166.0,93158.0,0.18438728]
[1732046523435,0.001712,93166.0,93158.0,0.24879328]
[1732046523667,0.001712,93166.0,93165.0,0.064401]
[1732046523891,0.001712,93166.0,93165.0,0.35785083]
[1732046524106,0.001712,93166.0,93165.0,0.25056355]
[1732046524325,0.001712,93166.0,93165.0,0.29706355]
[1732046525004,0.001712,93166.0,93165.0,0.39706355]
[1732046526402,0.001712,93166.0,93165.0,0.1]
[1732046526619,0.001712,93166.0,93159.0,0.1]
[1732046526833,0.04288145,93194.0,93165.0,0.064401]
[1732046527050,0.67709787,93193.0,93164.0,0.1]
[1732046527265,0.10732,93179.0,93166.0,0.064401]
[1732046527492,0.107322,93177.0,93166.0,0.064401]
[1732046527731,0.107322,93177.0,93160.0,0.10906255]
[1732046527732,0.12879787,93176.0,93141.0,0.0824]
[1732046527953,0.56803532,93175.0,93143.0,0.064416]
[1732046528171,0.56803532,93175.0,93141.0,0.0824]
[1732046528172,0.214681,93162.0,93141.0,0.146817]
[1732046528392,0.214681,93162.0,93137.0,0.0466]
[1732046528393,0.214684,93160.0,93137.0,0.0466]
[1732046528615,0.01973532,93159.0,93137.0,0.0466]
[1732046528848,0.10906255,93162.0,93137.0,0.0466]
[1732046528849,0.23442432,93158.0,93137.0,0.0466]
[1732046529110,0.12879787,93157.0,93134.0,0.000856]
[1732046529327,0.107357,93147.0,93135.0,0.064422]
[1732046529553,0.23443032,93156.0,93135.0,0.064422]
[1732046529772,0.5483,93170.0,93134.0,0.000856]
[1732046529773,0.01973532,93155.0,93134.0,0.000856]
[1732046529980,0.10906255,93169.0,93134.0,0.000856]
[1732046529981,0.2147,93153.0,93134.0,0.000856]
[1732046530216,0.23443332,93154.0,93134.0,0.065279]
[1732046530217,0.214707,93151.0,93134.0,0.065279]
[1732046530476,0.107361,93143.0,93134.0,0.000856]
[1732046530685,0.01973532,93142.0,93136.0,0.064421]
[1732046530901,0.01973532,93141.0,93136.0,0.064421]
[1732046531119,0.01973532,93140.0,93136.0,0.064421]
[1732046531334,0.01973532,93139.0,93135.0,0.064422]
[1732046531548,0.214712,93148.0,93135.0,0.064422]
[1732046531549,0.01973532,93138.0,93137.0,0.06442]
[1732046531976,0.01973532,93138.0,93135.0,0.064422]
[1732046532188,0.01973532,93137.0,93136.0,0.064421]
[1732046532618,0.01973532,93137.0,93135.0,0.064422]
[1732046532840,0.01973544,93137.0,93136.0,0.064421]
[1732046533051,0.04371422,93144.0,93140.0,0.064418]
[1732046533277,0.0197381,93143.0,93137.0,0.06442]
[1732046533488,0.0197381,93142.0,93135.0,0.064422]
[1732046533697,0.10735,93153.0,93134.0,0.000856]
[1732046533938,0.107355,93149.0,93134.0,0.000856]
[1732046534177,0.0197452,93148.0,93143.0,0.064416]
[1732046534413,0.0197452,93147.0,93134.0,0.000856]
[1732046534633,0.0197452,93146.0,93134.0,0.000856]
[1732046534843,0.214705,93151.0,93134.0,0.000856]
[1732046534844,0.0197452,93145.0,93134.0,0.000856]
[1732046535055,0.107362,93143.0,93134.0,0.000856]
[1732046535284,0.107371,93135.0,93134.0,0.000856]
[1732046535534,0.23617875,93135.0,93134.0,0.000856]
[1732046536182,0.7844936,93135.0,93134.0,0.000856]
[1732046536404,0.7944936,93135.0,93134.0,0.000856]
[1732046536650,0.214802,93109.0,93093.0,0.0468]
[1732046536931,0.01,93134.0,93093.0,0.0468]
[1732046536932,0.12716205,93108.0,93093.0,0.0468]
[1732046537149,0.01976005,93107.0,93093.0,0.0468]
[1732046537368,0.01976005,93106.0,93093.0,0.0468]
[1732046537608,0.01976005,93105.0,93093.0,0.0468]
[1732046537826,0.01976005,93104.0,93093.0,0.0468]
[1732046538045,0.01976005,93103.0,93093.0,0.0468]
[1732046538276,0.01976005,93102.0,93093.0,0.0468]
[1732046538488,0.01976005,93101.0,93093.0,0.0468]
[1732046538722,0.01976005,93100.0,93093.0,0.0468]
[1732046538948,0.01976005,93099.0,93093.0,0.0468]
[1732046539179,0.01976005,93098.0,93088.0,0.064455]
[1732046539408,0.01976005,93097.0,93089.0,0.10906255]
[1732046539614,0.01971984,93096.0,93090.0,0.1]
[1732046539826,0.01971984,93095.0,93090.0,0.1]
[1732046540045,0.01971984,93094.0,93090.0,0.1]
[1732046540275,0.01971984,93093.0,93090.0,0.1]
[1732046540504,0.01971984,93107.0,93090.0,0.164453]
[1732046540764,0.01971984,93106.0,93090.0,0.1]
[1732046541001,0.2594161,93114.0,93079.0,0.076]
[1732046541002,0.67708239,93105.0,93079.0,0.076]
[1732046541245,0.01971984,93104.0,93067.0,0.18438728]
[1732046541463,0.01971984,93104.0,93058.0,0.01]
[1732046541464,0.01971984,93103.0,93083.0,0.18438728]
[1732046541684,0.107411,93100.0,93083.0,0.18438728]
[1732046543325,0.5483,93104.0,93087.0,0.064455]
[1732046543505,0.5483,93104.0,93088.0,0.064454]
[1732046543705,0.5483,93104.0,93083.0,0.18438728]
[1732046543932,0.5483,93104.0,93083.0,0.29344983]
[1732046544140,0.5483,93104.0,93083.0,0.10906255]
[1732046544349,0.5483,93104.0,93083.0,0.17352055]
[1732046544595,0.107409,93102.0,93090.0,0.0008559]
[1732046545054,0.5483,93104.0,93090.0,0.0653089]
[1732046545456,0.5483,93104.0,93090.0,0.0008559]
[1732046546161,0.107421,93091.0,93090.0,0.0008559]
[1732046547074,0.214832,93096.0,93090.0,0.0008559]
[1732046547297,0.107421,93091.0,93090.0,0.0008559]
[1732046547746,0.107411,93100.0,93090.0,0.0008559]
[1732046547963,0.107421,93091.0,93090.0,0.0008559]
[1732046548181,0.21648355,93091.0,93090.0,0.0008559]
[1732046548441,0.10906255,93091.0,93090.0,0.0008559]
[1732046549182,0.21648355,93091.0,93090.0,0.0008559]
[1732046550631,0.107423,93090.0,93076.0,0.0573189]
[1732046550853,0.21648555,93090.0,93076.0,0.0573189]
[1732046551111,0.107425,93088.0,93075.0,0.064463]
[1732046551328,0.10906255,93087.0,93073.0,0.0008553]
[1732046551543,0.107436,93079.0,93073.0,0.0008553]
[1732046551767,0.10906255,93087.0,93073.0,0.0008553]
[1732046551768,0.214855,93086.0,93073.0,0.0008553]
[1732046551988,0.214864,93082.0,93073.0,0.0008553]
[1732046552228,0.107434,93080.0,93073.0,0.0008553]
[1732046552906,0.32392655,93082.0,93073.0,0.0008553]
[1732046552907,0.107433,93081.0,93073.0,0.0008553]
[1732046553147,0.21649455,93082.0,93073.0,0.0008553]
[1732046553366,0.107434,93081.0,93073.0,0.0008553]
[1732046553788,0.107434,93080.0,93073.0,0.0008553]
[1732046554189,0.21649455,93082.0,93073.0,0.0008553]
[1732046554406,0.2591558,93082.0,93073.0,0.0008553]
[1732046554612,0.107433,93081.0,93073.0,0.0008553]
[1732046554820,0.1517238,93082.0,93073.0,0.0008553]
[1732046555017,0.107434,93080.0,93073.0,0.0008553]
[1732046555675,0.3665888,93082.0,93073.0,0.0008553]
[1732046555825,0.107433,93081.0,93073.0,0.0008553]
[1732046556276,0.10906255,93080.0,93073.0,0.0008553]
[1732046556482,0.107441,93074.0,93073.0,0.0008553]
[1732046556825,0.126875,93077.0,93073.0,0.0008553]
[1732046557145,0.10906255,93076.0,93073.0,0.0008553]
[1732046557372,0.107441,93074.0,93073.0,0.0008553]
[1732046557559,0.21650355,93074.0,93073.0,0.0008553]
[1732046557974,0.24707655,93074.0,93073.0,0.0008553]
[1732046558407,0.794508,93074.0,93073.0,0.0008553]
[1732046558838,0.8217737,93074.0,93073.0,0.0008553]
[1732046559057,0.9217737,93074.0,93073.0,0.0008553]
[1732046559680,0.9274841,93074.0,93073.0,0.0008553]
[1732046559905,0.95805849,93074.0,93073.0,0.0008553]
[1732046560109,0.95805849,93074.0,93051.0,0.0004]
[1732046560110,0.107466,93052.0,93051.0,0.0004]
[1732046560314,0.76482855,93052.0,93051.0,0.0004]
[1732046561149,0.84572855,93052.0,93051.0,0.0004]
[1732046561487,0.5483,93052.0,93051.0,0.0004]
[1732046562528,0.5483,93052.0,93050.0,0.199253]
[1732046562751,0.59164057,93052.0,93050.0,0.263734]
[1732046562964,0.59164057,93052.0,93051.0,0.06448]
[1732046564089,0.5483,93052.0,93051.0,0.06448]
[1732046565386,0.5483,93052.0,93050.0,0.263734]
[1732046565387,0.107438,93077.0,93069.0,0.075212]
[1732046565596,0.10906255,93076.0,93069.0,0.075212]
[1732046565803,0.04266494,93077.0,93063.0,0.075217]
[1732046566016,0.10906255,93077.0,93050.0,0.199253]
[1732046566215,0.1,93084.0,93076.0,0.075206]
[1732046566427,0.10906255,93083.0,93077.0,0.075205]
[1732046566652,0.10906255,93083.0,93053.0,0.075225]
[1732046566887,0.04252981,93086.0,93067.0,0.075214]
[1732046567112,0.5483,93091.0,93090.0,0.075196]
[1732046567324,0.214801,93110.0,93099.0,0.075188]
[1732046567325,0.5483,93102.0,93099.0,0.075188]
[1732046567542,0.107414,93098.0,93091.0,0.075194]
[1732046567748,0.107425,93088.0,93071.0,0.0492]
[1732046567967,0.107413,93099.0,93071.0,0.0492]
[1732046568169,0.5483,93101.0,93094.0,0.075192]
[1732046568170,0.10906255,93098.0,93094.0,0.075192]
[1732046568409,0.08694652,93110.0,93071.0,0.0492]
[1732046568410,0.0017128,93090.0,93089.0,0.075196]
[1732046569076,0.0017128,93090.0,93089.0,0.153896]
[1732046570199,0.0017128,93090.0,93089.0,0.26295855]
[1732046570417,0.0017128,93090.0,93089.0,0.31025855]
[1732046570868,0.5483,93125.0,93124.0,0.075168]
[1732046571081,0.001712,93134.0,93126.0,0.075166]
[1732046571317,0.001712,93134.0,93124.0,0.075168]
[1732046571318,0.21643555,93133.0,93124.0,0.075168]
[1732046571530,0.10906255,93133.0,93124.0,0.075167]
[1732046571738,0.10906255,93133.0,93115.0,0.075175]
[1732046571739,0.10906255,93133.0,93120.0,0.075171]
[1732046571951,0.107378,93129.0,93120.0,0.075171]
[1732046572165,0.04609907,93134.0,93117.0,0.075174]
[1732046572398,0.107383,93125.0,93112.0,0.075178]
[1732046572620,0.10906255,93128.0,93114.0,0.075175]
[1732046572829,0.214781,93119.0,93098.0,0.10906255]
[1732046573043,0.10906255,93128.0,93104.0,0.075184]
[1732046573256,0.10906255,93128.0,93107.0,0.075181]
[1732046573257,0.107392,93117.0,93107.0,0.075181]
[1732046573464,0.107386,93122.0,93113.0,0.075177]
[1732046573674,0.107388,93120.0,93092.0,0.075194]
[1732046573883,0.107388,93120.0,93090.0,0.10906255]
[1732046573884,0.04386451,93128.0,93120.0,0.075171]
[1732046574094,0.18438728,93152.0,93123.0,0.075168]
[1732046574095,0.1,93131.0,93123.0,0.075168]
[1732046574303,0.1,93131.0,93121.0,0.07517]
[1732046574519,0.5483,93132.0,93127.0,0.075166]
[1732046574729,0.04587272,93134.0,93106.0,0.18438728]
[1732046575151,0.001712,93134.0,93133.0,0.075161]
[1732046577913,0.001712,93134.0,93133.0,0.30862355]
[1732046579472,0.001712,93134.0,93133.0,0.075161]
[1732046579932,0.001712,93134.0,93133.0,0.18422355]
[1732046580140,0.001712,93134.0,93133.0,0.30862355]
[1732046580563,0.001712,93134.0,93133.0,0.35229441]
[1732046580989,0.001712,93134.0,93133.0,0.075161]
[1732046581881,0.001712,93134.0,93131.0,0.075162]
[1732046582101,0.001712,93134.0,93124.0,0.075168]
[1732046582335,0.001712,93134.0,93106.0,0.0487]
[1732046582336,0.001712,93134.0,93121.0,0.07517]
[1732046582560,0.001712,93134.0,93107.0,0.10906255]
[1732046583005,0.001712,93134.0,93123.0,0.075169]
[1732046583008,0.001712,93134.0,93133.0,0.075161]
[1732046583224,0.001712,93134.0,93131.0,0.075162]
[1732046583482,0.001712,93134.0,93130.0,0.075163]
[1732046583701,0.001712,93134.0,93128.0,0.075164]
[1732046583955,0.001712,93134.0,93129.0,0.075164]
[1732046584219,0.001712,93134.0,93132.0,0.064424]
[1732046584464,0.001712,93134.0,93133.0,0.064423]
[1732046584696,0.001712,93134.0,93132.0,0.064424]
[1732046584918,0.001712,93134.0,93133.0,0.064423]
[1732046586094,0.001712,93134.0,93133.0,0.17348555]
[1732046586821,0.001712,93134.0,93133.0,0.064423]
[1732046587076,0.214665,93169.0,93133.0,0.064423]
[1732046587077,0.01958315,93164.0,93156.0,0.064407]
[1732046587297,0.04295133,93165.0,93161.0,0.064404]
[1732046587536,0.04295133,93165.0,93140.0,0.18438728]
[1732046587537,0.04295133,93165.0,93164.0,0.064402]
[1732046587820,0.1,93171.0,93165.0,0.064401]
[1732046588573,0.04568226,93166.0,93165.0,0.064401]
[1732046588809,0.04568226,93166.0,93161.0,0.064404]
[1732046589069,0.10906255,93165.0,93146.0,0.064414]
[1732046589335,0.107346,93157.0,93146.0,0.064414]
[1732046589593,0.107352,93151.0,93143.0,0.064416]
[1732046589861,0.10906255,93157.0,93133.0,0.064423]
[1732046590092,0.0779,93160.0,93117.0,0.0468]
[1732046590093,0.214707,93150.0,93117.0,0.0468]
[1732046590316,0.214707,93150.0,93141.0,0.064417]
[1732046590580,0.10906255,93151.0,93147.0,0.064413]
[1732046590800,0.5483,93156.0,93149.0,0.064412]
[1732046590801,0.01958315,93155.0,93149.0,0.064412]
[1732046591041,0.01958315,93155.0,93151.0,0.064411]
[1732046591260,0.12693115,93155.0,93147.0,0.064414]
[1732046591481,0.01958315,93155.0,93143.0,0.064416]
[1732046591724,0.10735,93154.0,93146.0,0.064414]
[1732046592384,0.01958315,93155.0,93147.0,0.064413]
[1732046592610,0.01958315,93155.0,93145.0,0.064415]
[1732046592839,0.01958315,93155.0,93154.0,0.064409]
[1732046593499,0.0441486,93156.0,93155.0,0.064408]
[1732046593941,0.1,93159.0,93143.0,0.064417]
[1732046594169,0.107348,93155.0,93126.0,0.064428]
[1732046594417,0.5483,93161.0,93129.0,0.064426]
[1732046594637,0.5483,93161.0,93052.0,0.09532455]
[1732046594638,0.5483,93161.0,93160.0,0.064405]
[1732046594852,0.04361307,93164.0,93163.0,0.064403]
[1732046595514,0.06328259,93164.0,93163.0,0.064403]
[1732046596439,0.214677,93163.0,93130.0,0.10906255]
[1732046596658,0.01966952,93162.0,93160.0,0.064405]
[1732046596894,0.04361307,93164.0,93163.0,0.064403]
[1732046597150,0.06332607,93164.0,93163.0,0.064403]
[1732046597376,0.06332607,93164.0,93161.0,0.064404]
[1732046597595,0.06332607,93164.0,93163.0,0.064403]
[1732046597596,0.04361307,93164.0,93163.0,0.064403]
[1732046597814,0.06334511,93164.0,93138.0,0.18438728]
[1732046598062,0.04361307,93164.0,93138.0,0.18438728]
[1732046598295,0.107342,93160.0,93152.0,0.06441]
[1732046598934,0.107333,93168.0,93161.0,0.064404]
[1732046599159,0.0575,93185.0,93163.0,0.064402]
[1732046599160,0.01974267,93165.0,93163.0,0.064402]
[1732046599411,0.01974267,93165.0,93161.0,0.064404]
[1732046599412,0.107327,93173.0,93165.0,0.064401]
[1732046599625,0.02145984,93166.0,93164.0,0.064402]
[1732046599844,0.0017118,93166.0,93147.0,0.18438728]
[1732046600088,0.0017118,93166.0,93165.0,0.064401]
[1732046601946,0.1,93177.0,93165.0,0.064401]
[1732046602274,0.1,93175.0,93168.0,0.064399]
[1732046602471,0.107327,93173.0,93137.0,0.01]
[1732046602706,0.1,93175.0,93137.0,0.01]
[1732046602707,0.1,93175.0,93168.0,0.064399]